[Event "Titled Tuesday Blitz March 14 Early 2023"]
[White "Manon-og, Ramon Jr."]
[Black "Fabris, Alberto"]
[WhiteFideId "5200776"]
[BlackFideId "801348"]
[WhiteElo "2343"]
[BlackElo "2195"]
[Result "1/2-1/2"]
[Round "08"]
[TimeControl "180+2"]
[Date "2023.03.14"]
[WhiteClock "0:01:05"]
[BlackClock "0:00:35"]

1. e4 {[%clk 0:03:00]}  c5 {[%clk 0:03:00]} 2. Nf3 {[%clk 0:02:59]}  d6 {[%clk 0:03:00]} 3. Bb5+ {[%clk 0:03:00]}  Nd7 {[%clk 0:02:59]} 4. a4 {[%clk 0:02:59]}  g6 {[%clk 0:02:59]} 5. Nc3 {[%clk 0:02:58]}  Bg7 {[%clk 0:02:59]} 6. O-O {[%clk 0:02:58]}  a6 {[%clk 0:02:57]} 7. Bc4 {[%clk 0:02:59]}  Ngf6 {[%clk 0:02:57]} 8. a5 {[%clk 0:02:56]}  O-O {[%clk 0:02:56]} 9. d3 {[%clk 0:02:55]}  b5 {[%clk 0:02:52]} 10. axb6 {[%clk 0:02:55]}  Nxb6 {[%clk 0:02:52]} 11. Bb3 {[%clk 0:02:56]}  Bb7 {[%clk 0:02:48]} 12. Bg5 {[%clk 0:02:55]}  Qc7 {[%clk 0:02:47]} 13. Qd2 {[%clk 0:02:55]}  c4 {[%clk 0:02:42]} 14. Ba2 {[%clk 0:02:53]}  Rac8 {[%clk 0:02:30]} 15. Bh6 {[%clk 0:02:51]}  d5 {[%clk 0:02:13]} 16. Bxg7 {[%clk 0:02:50]}  Kxg7 {[%clk 0:02:12]} 17. exd5 {[%clk 0:02:46]}  Nfxd5 {[%clk 0:02:11]} 18. Nxd5 {[%clk 0:02:46]}  Bxd5 {[%clk 0:02:09]} 19. Ng5 {[%clk 0:02:42]}  cxd3 {[%clk 0:02:03]} 20. Bxd5 {[%clk 0:02:41]}  Nxd5 {[%clk 0:02:01]} 21. Qxd3 {[%clk 0:02:41]}  Qc4 {[%clk 0:01:47]} 22. Rxa6 {[%clk 0:02:38]}  Qxd3 {[%clk 0:01:46]} 23. cxd3 {[%clk 0:02:39]}  Nb4 {[%clk 0:01:46]} 24. Ra7 {[%clk 0:02:38]}  h6 {[%clk 0:01:35]} 25. Nf3 {[%clk 0:02:35]}  Nxd3 {[%clk 0:01:33]} 26. Rxe7 {[%clk 0:02:33]}  Nxb2 {[%clk 0:01:33]} 27. h4 {[%clk 0:02:33]}  Rfe8 {[%clk 0:01:31]} 28. Rb7 {[%clk 0:02:31]}  Rb8 {[%clk 0:01:32]} 29. Rc7 {[%clk 0:02:29]}  Rbc8 {[%clk 0:01:31]} 30. Rfc1 {[%clk 0:02:30]}  Rxc7 {[%clk 0:01:31]} 31. Rxc7 {[%clk 0:02:30]}  Re2 {[%clk 0:01:29]} 32. Nd4 {[%clk 0:02:25]}  Rd2 {[%clk 0:01:24]} 33. Ne6+ {[%clk 0:02:20]}  Kf6 {[%clk 0:01:24]} 34. Nc5 {[%clk 0:02:20]}  Rd1+ {[%clk 0:01:18]} 35. Kh2 {[%clk 0:02:20]}  Nd3 {[%clk 0:01:15]} 36. Rd7 {[%clk 0:02:12]}  Nxf2 {[%clk 0:01:09]} 37. Ra7 {[%clk 0:01:46]}  Ng4+ {[%clk 0:01:06]} 38. Kg3 {[%clk 0:01:45]}  h5 {[%clk 0:01:05]} 39. Ne4+ {[%clk 0:01:45]}  Kg7 {[%clk 0:01:05]} 40. Ng5 {[%clk 0:01:43]}  Rf1 {[%clk 0:01:03]} 41. Ne6+ {[%clk 0:01:41]}  Kf6 {[%clk 0:01:03]} 42. Ng5 {[%clk 0:01:37]}  Ne5 {[%clk 0:00:59]} 43. Ra6+ {[%clk 0:01:33]}  Kg7 {[%clk 0:00:58]} 44. Ra7 {[%clk 0:01:33]}  Rb1 {[%clk 0:00:57]} 45. Ne6+ {[%clk 0:01:32]}  Kf6 {[%clk 0:00:56]} 46. Ng5 {[%clk 0:01:31]}  Rb3+ {[%clk 0:00:55]} 47. Kf2 {[%clk 0:01:31]}  Kg7 {[%clk 0:00:54]} 48. Ne6+ {[%clk 0:01:30]}  Kf6 {[%clk 0:00:54]} 49. Nd4 {[%clk 0:01:30]}  Rb2+ {[%clk 0:00:54]} 50. Kg3 {[%clk 0:01:29]}  Rb1 {[%clk 0:00:50]} 51. Ra6+ {[%clk 0:01:28]}  Kg7 {[%clk 0:00:50]} 52. Ra5 {[%clk 0:01:28]}  Ng4 {[%clk 0:00:49]} 53. Nf3 {[%clk 0:01:26]}  Rb3 {[%clk 0:00:49]} 54. Ra7 {[%clk 0:01:25]}  Ne5 {[%clk 0:00:46]} 55. Re7 {[%clk 0:01:20]}  Nxf3 {[%clk 0:00:46]} 56. gxf3 {[%clk 0:01:21]}  Kf6 {[%clk 0:00:46]} 57. Ra7 {[%clk 0:01:21]}  Kf5 {[%clk 0:00:46]} 58. Ra5+ {[%clk 0:01:22]}  Kf6 {[%clk 0:00:46]} 59. Ra7 {[%clk 0:01:22]}  Kg7 {[%clk 0:00:46]} 60. Rc7 {[%clk 0:01:22]}  Rb4 {[%clk 0:00:46]} 61. Ra7 {[%clk 0:01:21]}  Rd4 {[%clk 0:00:46]} 62. Rb7 {[%clk 0:01:21]}  Kf6 {[%clk 0:00:47]} 63. Rb6+ {[%clk 0:01:21]}  Kf5 {[%clk 0:00:47]} 64. Rb5+ {[%clk 0:01:21]}  Ke6 {[%clk 0:00:47]} 65. Rb7 {[%clk 0:01:21]}  f6 {[%clk 0:00:46]} 66. Rb6+ {[%clk 0:01:21]}  Ke5 {[%clk 0:00:47]} 67. Rb8 {[%clk 0:01:20]}  g5 {[%clk 0:00:45]} 68. Rb5+ {[%clk 0:01:19]}  Ke6 {[%clk 0:00:44]} 69. hxg5 {[%clk 0:01:19]}  fxg5 {[%clk 0:00:44]} 70. Rxg5 {[%clk 0:01:19]}  h4+ {[%clk 0:00:44]} 71. Kh3 {[%clk 0:01:18]}  Kf6 {[%clk 0:00:45]} 72. Rg4 {[%clk 0:01:13]}  Rd3 {[%clk 0:00:39]} 73. Rf4+ {[%clk 0:01:12]}  Kg5 {[%clk 0:00:39]} 74. Rf8 {[%clk 0:01:12]}  Kh5 {[%clk 0:00:36]} 75. Rf5+ {[%clk 0:01:09]}  Kg6 {[%clk 0:00:36]} 76. Rf4 {[%clk 0:01:09]}  Kg5 {[%clk 0:00:35]} 77. Rg4+ {[%clk 0:01:09]}  Kf5 {[%clk 0:00:35]} 78. Kxh4 {[%clk 0:01:04]}  Rxf3 {[%clk 0:00:35]} 79. Rg5+ {[%clk 0:01:05]} 1/2-1/2


[Site "https://www.chess.com"]

[Event "Titled Tuesday Blitz March 14 Early 2023"]
[White "Lorenzo De La Riva, Lazaro"]
[Black "Liu, Casper"]
[WhiteFideId "2268809"]
[BlackFideId "1454153"]
[WhiteElo "2294"]
[BlackElo "2221"]
[Result "0-1"]
[Round "08"]
[TimeControl "180+2"]
[Date "2023.03.14"]
[WhiteClock "0:00:05"]
[BlackClock "0:01:00"]

1. e4 {[%clk 0:02:24]}  c5 {[%clk 0:02:59]} 2. b3 {[%clk 0:02:22]}  a5 {[%clk 0:02:53]} 3. Nc3 {[%clk 0:02:21]}  g6 {[%clk 0:02:52]} 4. Bc4 {[%clk 0:02:18]}  Bg7 {[%clk 0:02:53]} 5. Qf3 {[%clk 0:02:15]}  e6 {[%clk 0:02:53]} 6. Bb2 {[%clk 0:02:10]}  Nc6 {[%clk 0:02:53]} 7. O-O-O {[%clk 0:02:07]}  a4 {[%clk 0:02:46]} 8. Nb5 {[%clk 0:02:06]}  Bxb2+ {[%clk 0:02:44]} 9. Kxb2 {[%clk 0:02:06]}  axb3 {[%clk 0:02:36]} 10. axb3 {[%clk 0:02:02]}  Qa5 {[%clk 0:02:33]} 11. Ne2 {[%clk 0:01:17]}  Qa2+ {[%clk 0:02:17]} 12. Kc3 {[%clk 0:01:18]}  Nb4 {[%clk 0:02:15]} 13. Rc1 {[%clk 0:01:02]}  d5 {[%clk 0:01:31]} 14. exd5 {[%clk 0:00:54]}  exd5 {[%clk 0:01:31]} 15. Nc7+ {[%clk 0:00:52]}  Kd8 {[%clk 0:01:28]} 16. Nxa8 {[%clk 0:00:51]}  dxc4 {[%clk 0:01:17]} 17. Nb6 {[%clk 0:00:19]}  Ne7 {[%clk 0:01:14]} 18. Nf4 {[%clk 0:00:16]}  cxb3 {[%clk 0:01:07]} 19. cxb3 {[%clk 0:00:16]}  Bf5 {[%clk 0:01:05]} 20. Nc4 {[%clk 0:00:14]}  g5 {[%clk 0:01:01]} 21. Qc6 {[%clk 0:00:05]}  bxc6 {[%clk 0:01:00]} 0-1


[Site "https://www.chess.com"]

[Event "Titled Tuesday Blitz March 14 Early 2023"]
[White "Sovetbekova, Nurai"]
[Black "Necula, Iulian"]
[WhiteFideId "13801910"]
[BlackFideId "1232380"]
[WhiteElo "1857"]
[BlackElo "1790"]
[Result "1-0"]
[Round "08"]
[TimeControl "180+2"]
[Date "2023.03.14"]
[WhiteClock "0:00:15"]
[BlackClock "0:00:25"]

1. d4 {[%clk 0:03:00]}  d6 {[%clk 0:03:00]} 2. e4 {[%clk 0:02:49]}  Nf6 {[%clk 0:03:00]} 3. Nc3 {[%clk 0:02:48]}  e5 {[%clk 0:03:00]} 4. dxe5 {[%clk 0:02:43]}  dxe5 {[%clk 0:03:01]} 5. Qxd8+ {[%clk 0:02:44]}  Kxd8 {[%clk 0:03:02]} 6. Bg5 {[%clk 0:02:42]}  Nd7 {[%clk 0:03:00]} 7. Nf3 {[%clk 0:02:34]}  Bd6 {[%clk 0:02:59]} 8. Bc4 {[%clk 0:02:31]}  Rf8 {[%clk 0:02:48]} 9. O-O-O {[%clk 0:02:16]}  h6 {[%clk 0:02:47]} 10. Bxf6+ {[%clk 0:02:16]}  gxf6 {[%clk 0:02:47]} 11. Nd5 {[%clk 0:02:04]}  Rg8 {[%clk 0:02:33]} 12. g3 {[%clk 0:01:49]}  Rg4 {[%clk 0:02:31]} 13. Rhe1 {[%clk 0:01:47]}  Ke8 {[%clk 0:02:09]} 14. Nh4 {[%clk 0:01:36]}  Kf8 {[%clk 0:01:35]} 15. Nf5 {[%clk 0:01:30]}  h5 {[%clk 0:01:28]} 16. Nxd6 {[%clk 0:01:05]}  cxd6 {[%clk 0:01:27]} 17. Nc7 {[%clk 0:01:05]}  Rb8 {[%clk 0:01:23]} 18. Rxd6 {[%clk 0:01:00]}  Nc5 {[%clk 0:01:17]} 19. f3 {[%clk 0:00:53]}  Rg6 {[%clk 0:01:16]} 20. Red1 {[%clk 0:00:44]}  Bd7 {[%clk 0:01:02]} 21. b4 {[%clk 0:00:36]}  b5 {[%clk 0:01:01]} 22. bxc5 {[%clk 0:00:35]}  bxc4 {[%clk 0:01:02]} 23. Rxd7 {[%clk 0:00:35]}  c3 {[%clk 0:00:58]} 24. Rd8+ {[%clk 0:00:31]}  Rxd8 {[%clk 0:00:58]} 25. Rxd8+ {[%clk 0:00:31]}  Ke7 {[%clk 0:00:59]} 26. Rd3 {[%clk 0:00:31]}  h4 {[%clk 0:00:57]} 27. g4 {[%clk 0:00:25]}  f5 {[%clk 0:00:50]} 28. exf5 {[%clk 0:00:24]}  Rc6 {[%clk 0:00:50]} 29. Nd5+ {[%clk 0:00:21]}  Kf8 {[%clk 0:00:47]} 30. Rxc3 {[%clk 0:00:21]}  h3 {[%clk 0:00:46]} 31. Nb4 {[%clk 0:00:20]}  Rc7 {[%clk 0:00:45]} 32. c6 {[%clk 0:00:20]}  f6 {[%clk 0:00:40]} 33. Nd5 {[%clk 0:00:20]}  Rc8 {[%clk 0:00:40]} 34. Nxf6 {[%clk 0:00:20]}  Ke7 {[%clk 0:00:40]} 35. Nd7 {[%clk 0:00:20]}  Kd6 {[%clk 0:00:40]} 36. f6 {[%clk 0:00:19]}  Ke6 {[%clk 0:00:32]} 37. g5 {[%clk 0:00:17]}  Rg8 {[%clk 0:00:25]} 38. c7 {[%clk 0:00:14]}  Kxd7 {[%clk 0:00:24]} 39. c8=Q+ {[%clk 0:00:13]}  Rxc8 {[%clk 0:00:24]} 40. Rxc8 {[%clk 0:00:14]}  Kxc8 {[%clk 0:00:25]} 41. f7 {[%clk 0:00:15]} 1-0


[Site "https://www.chess.com"]

[Event "Titled Tuesday Blitz March 14 Early 2023"]
[White "Zhurova, Anna"]
[Black "Levitan, Caleb Levi"]
[WhiteFideId "54113075"]
[BlackFideId "14332620"]
[WhiteElo "2031"]
[BlackElo "1963"]
[Result "1-0"]
[Round "08"]
[TimeControl "180+2"]
[Date "2023.03.14"]
[WhiteClock "0:00:16"]
[BlackClock "0:00:01"]

1. e4 {[%clk 0:03:00]}  e5 {[%clk 0:02:52]} 2. Nf3 {[%clk 0:03:00]}  Nc6 {[%clk 0:02:51]} 3. Bb5 {[%clk 0:03:00]}  a6 {[%clk 0:02:50]} 4. Ba4 {[%clk 0:03:00]}  Nf6 {[%clk 0:02:49]} 5. d3 {[%clk 0:03:00]}  b5 {[%clk 0:02:48]} 6. Bb3 {[%clk 0:03:00]}  Bc5 {[%clk 0:02:48]} 7. c3 {[%clk 0:02:55]}  d6 {[%clk 0:02:46]} 8. h3 {[%clk 0:02:55]}  Bb6 {[%clk 0:02:38]} 9. O-O {[%clk 0:02:54]}  O-O {[%clk 0:02:38]} 10. Bg5 {[%clk 0:02:44]}  h6 {[%clk 0:02:38]} 11. Be3 {[%clk 0:02:42]}  Bb7 {[%clk 0:02:30]} 12. Re1 {[%clk 0:02:37]}  Qe7 {[%clk 0:02:22]} 13. Nh4 {[%clk 0:02:27]}  Bc8 {[%clk 0:02:09]} 14. a4 {[%clk 0:02:09]}  Bxe3 {[%clk 0:01:47]} 15. Rxe3 {[%clk 0:02:04]}  Be6 {[%clk 0:01:48]} 16. Bxe6 {[%clk 0:01:59]}  Qxe6 {[%clk 0:01:45]} 17. Nf5 {[%clk 0:01:52]}  Ne7 {[%clk 0:01:44]} 18. Ng3 {[%clk 0:01:47]}  Ng6 {[%clk 0:01:41]} 19. d4 {[%clk 0:01:44]}  Nf4 {[%clk 0:01:29]} 20. d5 {[%clk 0:01:42]}  Qd7 {[%clk 0:01:21]} 21. Nd2 {[%clk 0:01:40]}  g6 {[%clk 0:01:04]} 22. Ne2 {[%clk 0:01:34]}  N6h5 {[%clk 0:00:58]} 23. Ng3 {[%clk 0:01:09]}  Nxg3 {[%clk 0:00:32]} 24. fxg3 {[%clk 0:01:07]}  Nh5 {[%clk 0:00:32]} 25. Qe2 {[%clk 0:01:01]}  f5 {[%clk 0:00:18]} 26. exf5 {[%clk 0:01:00]}  Rxf5 {[%clk 0:00:18]} 27. axb5 {[%clk 0:00:56]}  Raf8 {[%clk 0:00:13]} 28. bxa6 {[%clk 0:00:53]}  Rf2 {[%clk 0:00:13]} 29. Qxf2 {[%clk 0:00:51]}  Rxf2 {[%clk 0:00:13]} 30. Kxf2 {[%clk 0:00:50]}  Qf7+ {[%clk 0:00:12]} 31. Kg1 {[%clk 0:00:43]}  Qxd5 {[%clk 0:00:09]} 32. a7 {[%clk 0:00:43]}  Qa8 {[%clk 0:00:09]} 33. Ne4 {[%clk 0:00:33]}  Ng7 {[%clk 0:00:06]} 34. g4 {[%clk 0:00:30]}  Ne6 {[%clk 0:00:06]} 35. Rf3 {[%clk 0:00:19]}  Nd8 {[%clk 0:00:04]} 36. b4 {[%clk 0:00:18]}  Nc6 {[%clk 0:00:04]} 37. Nf6+ {[%clk 0:00:17]}  Kg7 {[%clk 0:00:03]} 38. Nd5 {[%clk 0:00:18]}  Nxa7 {[%clk 0:00:02]} 39. Nxc7 {[%clk 0:00:18]}  Qb7 {[%clk 0:00:02]} 40. Ne6+ {[%clk 0:00:18]}  Kg8 {[%clk 0:00:02]} 41. Rf8+ {[%clk 0:00:18]}  Kh7 {[%clk 0:00:03]} 42. Nd8 {[%clk 0:00:17]}  Qb6+ {[%clk 0:00:03]} 43. Kh2 {[%clk 0:00:17]}  Nc6 {[%clk 0:00:03]} 44. Nxc6 {[%clk 0:00:15]}  Qxc6 {[%clk 0:00:02]} 45. Ra7+ {[%clk 0:00:16]}  Qc7 {[%clk 0:00:01]} 46. Rxc7# {[%clk 0:00:16]} 1-0


[Site "https://www.chess.com"]

[Event "Titled Tuesday Blitz March 14 Early 2023"]
[White "Kornyukov, Alexey"]
[Black "Samaganova, Aleksandra"]
[WhiteFideId "4150457"]
[BlackFideId "13800221"]
[WhiteElo "2352"]
[BlackElo "1858"]
[Result "0-1"]
[Round "08"]
[TimeControl "180+2"]
[Date "2023.03.14"]
[WhiteClock "0:00:02"]
[BlackClock "0:00:07"]

1. e4 {[%clk 0:02:56]}  c5 {[%clk 0:02:59]} 2. Nf3 {[%clk 0:02:55]}  e6 {[%clk 0:02:56]} 3. c3 {[%clk 0:02:54]}  a6 {[%clk 0:02:52]} 4. d4 {[%clk 0:02:53]}  cxd4 {[%clk 0:02:52]} 5. cxd4 {[%clk 0:02:51]}  d5 {[%clk 0:02:53]} 6. exd5 {[%clk 0:02:50]}  exd5 {[%clk 0:02:53]} 7. Nc3 {[%clk 0:02:50]}  Nf6 {[%clk 0:02:50]} 8. Bd3 {[%clk 0:02:49]}  Nc6 {[%clk 0:02:48]} 9. O-O {[%clk 0:02:47]}  Be7 {[%clk 0:02:47]} 10. Bg5 {[%clk 0:02:46]}  O-O {[%clk 0:02:46]} 11. Re1 {[%clk 0:02:42]}  h6 {[%clk 0:02:46]} 12. Bh4 {[%clk 0:02:40]}  Bg4 {[%clk 0:02:45]} 13. Bc2 {[%clk 0:02:38]}  Bxf3 {[%clk 0:02:38]} 14. Qxf3 {[%clk 0:02:31]}  Nxd4 {[%clk 0:02:33]} 15. Qd3 {[%clk 0:02:27]}  Nxc2 {[%clk 0:02:32]} 16. Qxc2 {[%clk 0:02:26]}  d4 {[%clk 0:02:31]} 17. Rad1 {[%clk 0:02:10]}  Rc8 {[%clk 0:02:17]} 18. Qb3 {[%clk 0:02:08]}  b5 {[%clk 0:02:00]} 19. Bxf6 {[%clk 0:02:01]}  Bxf6 {[%clk 0:01:59]} 20. Ne4 {[%clk 0:02:00]}  Re8 {[%clk 0:01:51]} 21. h3 {[%clk 0:01:46]}  Be5 {[%clk 0:01:46]} 22. Qf3 {[%clk 0:01:34]}  Bb8 {[%clk 0:01:39]} 23. Ng3 {[%clk 0:01:28]}  Qd6 {[%clk 0:01:32]} 24. Rxe8+ {[%clk 0:01:23]}  Rxe8 {[%clk 0:01:31]} 25. Qd3 {[%clk 0:01:07]}  Rd8 {[%clk 0:01:04]} 26. Kf1 {[%clk 0:00:49]}  Qb4 {[%clk 0:00:44]} 27. Nf5 {[%clk 0:00:43]}  Qxb2 {[%clk 0:00:35]} 28. Ne7+ {[%clk 0:00:41]}  Kf8 {[%clk 0:00:33]} 29. Nc6 {[%clk 0:00:37]}  Rc8 {[%clk 0:00:32]} 30. Nxb8 {[%clk 0:00:35]}  Rxb8 {[%clk 0:00:32]} 31. Qg3 {[%clk 0:00:34]}  Re8 {[%clk 0:00:23]} 32. Qd6+ {[%clk 0:00:34]}  Kg8 {[%clk 0:00:23]} 33. Qxd4 {[%clk 0:00:30]}  Qxa2 {[%clk 0:00:18]} 34. Kg1 {[%clk 0:00:26]}  Qb3 {[%clk 0:00:12]} 35. Qd7 {[%clk 0:00:26]}  Qe6 {[%clk 0:00:11]} 36. Qa7 {[%clk 0:00:23]}  Rc8 {[%clk 0:00:08]} 37. Ra1 {[%clk 0:00:21]}  Rc6 {[%clk 0:00:08]} 38. Qa8+ {[%clk 0:00:20]}  Kh7 {[%clk 0:00:08]} 39. Qa7 {[%clk 0:00:18]}  Qf6 {[%clk 0:00:08]} 40. Kh1 {[%clk 0:00:17]}  Qxa1+ {[%clk 0:00:07]} 41. Kh2 {[%clk 0:00:17]}  Qe5+ {[%clk 0:00:08]} 42. g3 {[%clk 0:00:17]}  Qf6 {[%clk 0:00:08]} 43. Kg2 {[%clk 0:00:17]}  Re6 {[%clk 0:00:07]} 44. Qd7 {[%clk 0:00:16]}  b4 {[%clk 0:00:07]} 45. Qd3+ {[%clk 0:00:16]}  Qg6 {[%clk 0:00:07]} 46. Qb3 {[%clk 0:00:15]}  Qe4+ {[%clk 0:00:07]} 47. Kh2 {[%clk 0:00:15]}  a5 {[%clk 0:00:08]} 48. Qa4 {[%clk 0:00:13]}  Qe5 {[%clk 0:00:08]} 49. Qc2+ {[%clk 0:00:12]}  g6 {[%clk 0:00:07]} 50. Qc8 {[%clk 0:00:09]}  Qf5 {[%clk 0:00:07]} 51. f3 {[%clk 0:00:02]}  Re2+ {[%clk 0:00:06]} 52. Kh1 {[%clk 0:00:02]}  Qb1+ {[%clk 0:00:07]} 0-1


[Site "https://www.chess.com"]

[Event "Titled Tuesday Blitz March 14 Early 2023"]
[White "Comas Fabrego, Lluis"]
[Black "Sadubayev, Airat"]
[WhiteFideId "2200325"]
[BlackFideId "13713264"]
[WhiteElo "2523"]
[BlackElo "2129"]
[Result "0-1"]
[Round "08"]
[TimeControl "180+2"]
[Date "2023.03.14"]
[WhiteClock "0:00:06"]
[BlackClock "0:00:06"]

1. Nf3 {[%clk 0:03:00]}  d5 {[%clk 0:02:59]} 2. d4 {[%clk 0:03:00]}  Nf6 {[%clk 0:02:58]} 3. c4 {[%clk 0:02:59]}  c6 {[%clk 0:02:58]} 4. cxd5 {[%clk 0:02:59]}  cxd5 {[%clk 0:02:57]} 5. Nc3 {[%clk 0:03:00]}  Nc6 {[%clk 0:02:57]} 6. Bf4 {[%clk 0:03:00]}  Bf5 {[%clk 0:02:55]} 7. e3 {[%clk 0:03:00]}  e6 {[%clk 0:02:50]} 8. Bd3 {[%clk 0:02:59]}  Bg6 {[%clk 0:02:44]} 9. O-O {[%clk 0:02:55]}  Be7 {[%clk 0:02:44]} 10. Ne5 {[%clk 0:02:53]}  O-O {[%clk 0:02:41]} 11. Nxc6 {[%clk 0:02:40]}  bxc6 {[%clk 0:02:40]} 12. Bxg6 {[%clk 0:02:40]}  hxg6 {[%clk 0:02:40]} 13. Bg5 {[%clk 0:02:24]}  Rb8 {[%clk 0:02:34]} 14. Bxf6 {[%clk 0:02:22]}  Bxf6 {[%clk 0:02:32]} 15. Na4 {[%clk 0:02:22]}  Be7 {[%clk 0:02:30]} 16. Rc1 {[%clk 0:02:19]}  Qd6 {[%clk 0:02:21]} 17. b3 {[%clk 0:02:16]}  Rfc8 {[%clk 0:02:18]} 18. Nc5 {[%clk 0:02:13]}  Rb5 {[%clk 0:02:09]} 19. Rc2 {[%clk 0:02:05]}  e5 {[%clk 0:02:03]} 20. Qd3 {[%clk 0:01:46]}  e4 {[%clk 0:02:00]} 21. Qe2 {[%clk 0:01:43]}  Rb6 {[%clk 0:01:48]} 22. Rfc1 {[%clk 0:01:41]}  Qc7 {[%clk 0:01:38]} 23. Na4 {[%clk 0:01:35]}  Rb7 {[%clk 0:01:25]} 24. Qa6 {[%clk 0:01:34]}  c5 {[%clk 0:00:52]} 25. Nxc5 {[%clk 0:01:33]}  Rb6 {[%clk 0:00:50]} 26. Qe2 {[%clk 0:01:10]}  Rc6 {[%clk 0:00:49]} 27. b4 {[%clk 0:00:58]}  Qb6 {[%clk 0:00:36]} 28. a3 {[%clk 0:00:36]}  R6c7 {[%clk 0:00:31]} 29. Nb3 {[%clk 0:00:34]}  Rc6 {[%clk 0:00:22]} 30. Qd2 {[%clk 0:00:27]}  Kh7 {[%clk 0:00:16]} 31. Rxc6 {[%clk 0:00:27]}  Rxc6 {[%clk 0:00:17]} 32. Rxc6 {[%clk 0:00:26]}  Qxc6 {[%clk 0:00:18]} 33. Qc1 {[%clk 0:00:26]}  Qa4 {[%clk 0:00:17]} 34. Qb2 {[%clk 0:00:25]}  Qb5 {[%clk 0:00:16]} 35. Nc5 {[%clk 0:00:20]}  Qc4 {[%clk 0:00:16]} 36. h3 {[%clk 0:00:18]}  Kg8 {[%clk 0:00:15]} 37. g3 {[%clk 0:00:15]}  Bd6 {[%clk 0:00:14]} 38. Kg2 {[%clk 0:00:14]}  Qb5 {[%clk 0:00:13]} 39. Qc2 {[%clk 0:00:13]}  Qc6 {[%clk 0:00:13]} 40. Qc3 {[%clk 0:00:11]}  Qc7 {[%clk 0:00:11]} 41. Na4 {[%clk 0:00:08]}  Qd7 {[%clk 0:00:11]} 42. Qb3 {[%clk 0:00:07]}  Qb5 {[%clk 0:00:10]} 43. Nc3 {[%clk 0:00:06]}  Qa6 {[%clk 0:00:06]} 44. Qxd5 {[%clk 0:00:05]}  Qxa3 {[%clk 0:00:04]} 45. Nxe4 {[%clk 0:00:05]}  Bf8 {[%clk 0:00:03]} 46. Ng5 {[%clk 0:00:05]}  Qxb4 {[%clk 0:00:03]} 47. Qxf7+ {[%clk 0:00:04]}  Kh8 {[%clk 0:00:03]} 48. Qxf8+ {[%clk 0:00:04]}  Qxf8 {[%clk 0:00:02]} 49. Ne6 {[%clk 0:00:05]}  Qa8+ {[%clk 0:00:03]} 50. Kh2 {[%clk 0:00:03]}  Kg8 {[%clk 0:00:04]} 51. h4 {[%clk 0:00:04]}  a5 {[%clk 0:00:04]} 52. h5 {[%clk 0:00:05]}  a4 {[%clk 0:00:05]} 53. h6 {[%clk 0:00:05]}  gxh6 {[%clk 0:00:05]} 54. g4 {[%clk 0:00:05]}  a3 {[%clk 0:00:05]} 55. g5 {[%clk 0:00:06]}  a2 {[%clk 0:00:06]} 56. f3 {[%clk 0:00:07]}  Kh7 {[%clk 0:00:06]} 57. f4 {[%clk 0:00:07]}  hxg5 {[%clk 0:00:07]} 58. Nf8+ {[%clk 0:00:06]}  Qxf8 {[%clk 0:00:06]} 0-1


[Site "https://www.chess.com"]

[Event "Titled Tuesday Blitz March 14 Early 2023"]
[White "Wilson, Elvin"]
[Black "Alahakoon, Isuru"]
[WhiteFideId "2014874"]
[BlackFideId "9900993"]
[WhiteElo "2262"]
[BlackElo "1995"]
[Result "1-0"]
[Round "08"]
[TimeControl "180+2"]
[Date "2023.03.14"]
[WhiteClock "0:00:23"]
[BlackClock "0:00:16"]

1. c4 {[%clk 0:03:00]}  e5 {[%clk 0:02:59]} 2. Nc3 {[%clk 0:02:51]}  Nc6 {[%clk 0:02:51]} 3. g3 {[%clk 0:02:51]}  Bc5 {[%clk 0:02:50]} 4. Bg2 {[%clk 0:02:52]}  d6 {[%clk 0:02:49]} 5. e3 {[%clk 0:02:51]}  a6 {[%clk 0:02:49]} 6. Nge2 {[%clk 0:02:51]}  Ba7 {[%clk 0:02:49]} 7. d4 {[%clk 0:02:50]}  Nge7 {[%clk 0:02:46]} 8. h3 {[%clk 0:02:48]}  Bf5 {[%clk 0:02:42]} 9. O-O {[%clk 0:02:48]}  Qd7 {[%clk 0:02:41]} 10. Kh2 {[%clk 0:02:45]}  h5 {[%clk 0:02:40]} 11. d5 {[%clk 0:02:36]}  Nd8 {[%clk 0:02:33]} 12. e4 {[%clk 0:02:36]}  Bg6 {[%clk 0:02:30]} 13. f4 {[%clk 0:02:35]}  h4 {[%clk 0:02:21]} 14. f5 {[%clk 0:02:23]}  hxg3+ {[%clk 0:02:20]} 15. Nxg3 {[%clk 0:02:23]}  Bh7 {[%clk 0:02:17]} 16. Qe2 {[%clk 0:02:15]}  f6 {[%clk 0:02:15]} 17. Be3 {[%clk 0:02:15]}  Bxe3 {[%clk 0:02:14]} 18. Qxe3 {[%clk 0:02:15]}  Nf7 {[%clk 0:02:11]} 19. c5 {[%clk 0:02:11]}  dxc5 {[%clk 0:02:02]} 20. Qxc5 {[%clk 0:02:10]}  Nd6 {[%clk 0:02:02]} 21. Rac1 {[%clk 0:02:04]}  Rc8 {[%clk 0:01:47]} 22. Bf3 {[%clk 0:01:49]}  O-O {[%clk 0:01:46]} 23. Rg1 {[%clk 0:01:45]}  Kh8 {[%clk 0:01:45]} 24. Rg2 {[%clk 0:01:40]}  g6 {[%clk 0:01:45]} 25. fxg6 {[%clk 0:01:28]}  Nxg6 {[%clk 0:01:45]} 26. Bg4 {[%clk 0:01:23]}  Qe7 {[%clk 0:01:41]} 27. Bxc8 {[%clk 0:01:20]}  Rxc8 {[%clk 0:01:37]} 28. Nce2 {[%clk 0:01:15]}  Nh4 {[%clk 0:01:37]} 29. Rf2 {[%clk 0:01:12]}  Qg7 {[%clk 0:01:31]} 30. Rg1 {[%clk 0:01:02]}  Qh6 {[%clk 0:01:24]} 31. Qc1 {[%clk 0:00:58]}  Qf8 {[%clk 0:01:11]} 32. Qf1 {[%clk 0:00:57]}  Ne8 {[%clk 0:01:05]} 33. Nh5 {[%clk 0:00:50]}  Bxe4 {[%clk 0:00:52]} 34. Nc3 {[%clk 0:00:45]}  Bg6 {[%clk 0:00:41]} 35. Nxf6 {[%clk 0:00:45]}  Qd6 {[%clk 0:00:35]} 36. Nxe8 {[%clk 0:00:41]}  Rxe8 {[%clk 0:00:36]} 37. Rf6 {[%clk 0:00:41]}  Qc5 {[%clk 0:00:18]} 38. Rfxg6 {[%clk 0:00:36]}  Nxg6 {[%clk 0:00:19]} 39. Rxg6 {[%clk 0:00:36]}  Rf8 {[%clk 0:00:18]} 40. Rf6 {[%clk 0:00:30]}  Rg8 {[%clk 0:00:15]} 41. Rh6+ {[%clk 0:00:23]}  Kg7 {[%clk 0:00:16]} 42. Qf6# {[%clk 0:00:23]} 1-0


[Site "https://www.chess.com"]